[Event "Late-Titled-Tuesday-Blitz-January-30-2024"]
[Site "Chess.com"]
[Date "2024.01.30"]
[Round "11"]
[White "Hirna2005"]
[Black "tarno17"]
[Result "1-0"]
[WhiteElo "2292"]
[BlackElo "2111"]
[TimeControl "180+1"]
[EndTime "16:05:44 PST"]
[Termination "Hirna2005 won on time"]

1. e4 {[%clk 0:02:59.2]} 1... c5 {[%clk 0:02:59.9]} 2. c3 {[%clk 0:02:58.3]}
2... d5 {[%clk 0:02:59.8]} 3. exd5 {[%clk 0:02:57.8]} 3... Qxd5 {[%clk
0:03:00.7]} 4. Nf3 {[%clk 0:02:57.3]} 4... Nf6 {[%clk 0:03:01.1]} 5. Na3 {[%clk
0:02:56.7]} 5... e6 {[%clk 0:03:00]} 6. Bc4 {[%clk 0:02:54.6]} 6... Qd8 {[%clk
0:02:57.1]} 7. O-O {[%clk 0:02:53.8]} 7... a6 {[%clk 0:02:57]} 8. d4 {[%clk
0:02:51.2]} 8... b5 {[%clk 0:02:57.2]} 9. Bd3 {[%clk 0:02:48.9]} 9... c4 {[%clk
0:02:44.6]} 10. Be2 {[%clk 0:02:47]} 10... Bb7 {[%clk 0:02:44.3]} 11. Nc2 {[%clk
0:02:45.9]} 11... Bd6 {[%clk 0:02:37.2]} 12. a4 {[%clk 0:02:44.6]} 12... Nc6
{[%clk 0:02:28.8]} 13. Bg5 {[%clk 0:02:38.2]} 13... h6 {[%clk 0:02:23.8]} 14.
Bh4 {[%clk 0:02:35.2]} 14... Ne7 {[%clk 0:02:21.4]} 15. Ne5 {[%clk 0:02:23.9]}
15... Qc7 {[%clk 0:01:52.4]} 16. Re1 {[%clk 0:02:11.4]} 16... g5 {[%clk
0:01:42.3]} 17. Bg3 {[%clk 0:02:10.4]} 17... h5 {[%clk 0:01:29]} 18. h4 {[%clk
0:02:00.5]} 18... gxh4 {[%clk 0:01:17.7]} 19. Bxh4 {[%clk 0:02:00]} 19... Ng4
{[%clk 0:01:16.2]} 20. Bf3 {[%clk 0:01:34.8]} 20... Nf5 {[%clk 0:00:58.7]} 21.
Bg3 {[%clk 0:01:23]} 21... Nxg3 {[%clk 0:00:54.7]} 22. fxg3 {[%clk 0:01:23.2]}
22... Nxe5 {[%clk 0:00:25.4]} 23. dxe5 {[%clk 0:01:20.2]} 23... Bc5+ {[%clk
0:00:23.5]} 24. Nd4 {[%clk 0:01:13.2]} 24... b4 {[%clk 0:00:14]} 25. Qe2 {[%clk
0:00:55.5]} 25... bxc3 {[%clk 0:00:13.1]} 26. bxc3 {[%clk 0:00:55.3]} 26... Rd8
{[%clk 0:00:11.5]} 27. Bxb7 {[%clk 0:00:50.1]} 27... Qxb7 {[%clk 0:00:11.4]} 28.
Qxc4 {[%clk 0:00:49.9]} 28... Bxd4+ {[%clk 0:00:08.7]} 29. cxd4 {[%clk
0:00:49.1]} 29... Rg8 {[%clk 0:00:08.6]} 30. Ra3 {[%clk 0:00:47.6]} 30... Qb2
{[%clk 0:00:06.8]} 31. Rf3 {[%clk 0:00:44]} 31... h4 {[%clk 0:00:05.7]} 32. Qc6+
{[%clk 0:00:41.7]} 32... Ke7 {[%clk 0:00:05.9]} 33. Ref1 {[%clk 0:00:39.3]}
33... Rg7 {[%clk 0:00:03.2]} 34. Rxf7+ {[%clk 0:00:33]} 34... Rxf7 {[%clk
0:00:02.6]} 35. Qc7+ {[%clk 0:00:33.3]} 35... Rd7 {[%clk 0:00:01.6]} 36. Rxf7+
{[%clk 0:00:33.3]} 36... Kxf7 {[%clk 0:00:01.3]} 37. Qxd7+ {[%clk 0:00:33.9]}
37... Kg6 {[%clk 0:00:02]} 38. Qxe6+ {[%clk 0:00:33.7]} 38... Kg7 {[%clk
0:00:02.8]} 39. Qf6+ {[%clk 0:00:33.5]} 39... Kg8 {[%clk 0:00:02.9]} 40. gxh4
{[%clk 0:00:33.8]} 40... Qxd4+ {[%clk 0:00:03]} 41. Kh2 {[%clk 0:00:33.3]} 41...
Qd1 {[%clk 0:00:02.9]} 42. Qg5+ {[%clk 0:00:30.4]} 42... Kf7 {[%clk 0:00:02.2]}
43. Qf5+ {[%clk 0:00:30]} 43... Ke7 {[%clk 0:00:02.3]} 44. e6 {[%clk 0:00:27]}
44... Qd2 {[%clk 0:00:02]} 45. Qf7+ {[%clk 0:00:26.6]} 45... Kd6 {[%clk
0:00:01.8]} 46. Qd7+ {[%clk 0:00:26.7]} 46... Ke5 {[%clk 0:00:01.1]} 47. Qxd2
{[%clk 0:00:26.6]} 1-0

[Event "Late-Titled-Tuesday-Blitz-January-30-2024"]
[Site "Chess.com"]
[Date "2024.01.30"]
[Round "11"]
[White "Bryanl106"]
[Black "Nick12772"]
[Result "1-0"]
[WhiteElo "2544"]
[BlackElo "2386"]
[TimeControl "180+1"]
[EndTime "16:05:47 PST"]
[Termination "Bryanl106 won by resignation"]

1. e4 {[%clk 0:03:00.4]} 1... e6 {[%clk 0:03:00.1]} 2. d4 {[%clk 0:03:00.5]}
2... d5 {[%clk 0:03:01]} 3. Nd2 {[%clk 0:03:01]} 3... Nf6 {[%clk 0:03:00.9]} 4.
e5 {[%clk 0:03:01.4]} 4... Nfd7 {[%clk 0:03:01.7]} 5. f4 {[%clk 0:03:01.7]} 5...
c5 {[%clk 0:03:02.6]} 6. c3 {[%clk 0:03:02]} 6... Nc6 {[%clk 0:03:03.5]} 7. Ndf3
{[%clk 0:03:02.4]} 7... Qb6 {[%clk 0:03:03.5]} 8. a3 {[%clk 0:03:02.5]} 8... a5
{[%clk 0:03:02.2]} 9. b3 {[%clk 0:03:00.9]} 9... Be7 {[%clk 0:03:00.9]} 10. h4
{[%clk 0:02:54.7]} 10... h5 {[%clk 0:02:59]} 11. Be3 {[%clk 0:02:40.3]} 11... g6
{[%clk 0:02:57.4]} 12. Bd3 {[%clk 0:02:36.9]} 12... Qa7 {[%clk 0:02:40.6]} 13.
Ne2 {[%clk 0:02:36.1]} 13... b6 {[%clk 0:02:40.3]} 14. Qc2 {[%clk 0:02:31.3]}
14... Nf8 {[%clk 0:02:35.6]} 15. Bb5 {[%clk 0:02:28.9]} 15... Bd7 {[%clk
0:02:33.8]} 16. Qd3 {[%clk 0:02:20.2]} 16... Bd8 {[%clk 0:02:13.7]} 17. Kf2
{[%clk 0:02:17.6]} 17... Ne7 {[%clk 0:02:12.2]} 18. Bxd7+ {[%clk 0:02:15.1]}
18... Nxd7 {[%clk 0:01:59]} 19. Ng3 {[%clk 0:02:13.3]} 19... Qa6 {[%clk
0:01:43]} 20. Qxa6 {[%clk 0:02:01.6]} 20... Rxa6 {[%clk 0:01:43.9]} 21. dxc5
{[%clk 0:02:01.9]} 21... Nxc5 {[%clk 0:01:41.8]} 22. b4 {[%clk 0:01:58.9]} 22...
Na4 {[%clk 0:01:19]} 23. Rhc1 {[%clk 0:01:53.8]} 23... O-O {[%clk 0:01:08.6]}
24. Nd4 {[%clk 0:01:51.5]} 24... Nb2 {[%clk 0:01:00.2]} 25. Nf1 {[%clk
0:01:43.7]} 25... Nc4 {[%clk 0:01:00.1]} 26. Nd2 {[%clk 0:01:43.6]} 26... Nxd2
{[%clk 0:00:54.6]} 27. Bxd2 {[%clk 0:01:43.4]} 27... Bc7 {[%clk 0:00:53.3]} 28.
b5 {[%clk 0:01:36]} 28... Ra7 {[%clk 0:00:48.7]} 29. c4 {[%clk 0:01:36.9]} 29...
dxc4 {[%clk 0:00:47.7]} 30. Rxc4 {[%clk 0:01:36.7]} 30... Nd5 {[%clk 0:00:41.5]}
31. Rac1 {[%clk 0:01:35.9]} 31... Bd8 {[%clk 0:00:37.4]} 32. Nc6 {[%clk
0:01:35]} 32... Rd7 {[%clk 0:00:33.7]} 33. Ke2 {[%clk 0:01:34.6]} 33... Be7
{[%clk 0:00:33.3]} 34. a4 {[%clk 0:01:30.2]} 34... Bc5 {[%clk 0:00:32.6]} 35.
Nxa5 {[%clk 0:01:24.2]} 35... Be7 {[%clk 0:00:29.2]} 36. Nc6 {[%clk 0:01:24.1]}
36... Bxh4 {[%clk 0:00:29.3]} 37. f5 {[%clk 0:01:23]} 37... exf5 {[%clk
0:00:26.7]} 38. Rxh4 {[%clk 0:01:22.6]} 38... Re8 {[%clk 0:00:20.3]} 39. Kf2
{[%clk 0:01:15.7]} 39... Ne7 {[%clk 0:00:17.8]} 40. Rd4 {[%clk 0:01:14.5]} 40...
Rc7 {[%clk 0:00:10.5]} 41. Bg5 {[%clk 0:01:09.6]} 41... Nxc6 {[%clk 0:00:08.1]}
42. Rxc6 {[%clk 0:01:10.5]} 42... Ra7 {[%clk 0:00:06.5]} 43. Rd8 {[%clk
0:01:08.3]} 43... Rxd8 {[%clk 0:00:05.6]} 44. Bxd8 {[%clk 0:01:09.2]} 44... Rxa4
{[%clk 0:00:02.2]} 45. Bf6 {[%clk 0:01:09.8]} 45... Kh7 {[%clk 0:00:01.3]} 46.
Rc8 {[%clk 0:01:09.8]} 46... g5 {[%clk 0:00:02]} 47. Rh8+ {[%clk 0:01:08.8]}
47... Kg6 {[%clk 0:00:02.5]} 48. Rg8+ {[%clk 0:01:09.3]} 48... Kh7 {[%clk
0:00:02.3]} 49. Rg7+ {[%clk 0:01:09.1]} 49... Kh6 {[%clk 0:00:03]} 50. Rxf7
{[%clk 0:01:09.7]} 50... f4 {[%clk 0:00:03.1]} 51. Rb7 {[%clk 0:01:09.4]} 51...
Kg6 {[%clk 0:00:03.3]} 52. Rxb6 {[%clk 0:01:09.9]} 52... Kf5 {[%clk 0:00:04.1]}
53. Rb8 {[%clk 0:01:09.7]} 53... g4 {[%clk 0:00:04.2]} 54. Bh4 {[%clk
0:01:05.8]} 54... Ra2+ {[%clk 0:00:04.6]} 55. Kf1 {[%clk 0:01:05.7]} 55... Ra1+
{[%clk 0:00:04.7]} 56. Be1 {[%clk 0:01:05]} 56... f3 {[%clk 0:00:03.8]} 57. gxf3
{[%clk 0:01:05]} 57... gxf3 {[%clk 0:00:04.7]} 58. Rh8 {[%clk 0:01:04.8]} 58...
Kxe5 {[%clk 0:00:04.8]} 59. Rxh5+ {[%clk 0:01:04.9]} 59... Ke4 {[%clk
0:00:05.6]} 60. Kf2 {[%clk 0:00:59.4]} 60... Ra2+ {[%clk 0:00:05.6]} 61. Kg3
{[%clk 0:00:59.9]} 61... Rg2+ {[%clk 0:00:05.7]} 62. Kh3 {[%clk 0:00:59.9]}
62... Rb2 {[%clk 0:00:05.3]} 63. Bg3 {[%clk 0:00:55.8]} 63... f2 {[%clk
0:00:04.3]} 64. Kg2 {[%clk 0:00:55.7]} 64... Kd4 {[%clk 0:00:02.1]} 65. Be5+
{[%clk 0:00:55.5]} 65... Kc4 {[%clk 0:00:02.2]} 66. Bxb2 {[%clk 0:00:56.1]} 1-0

[Event "Late-Titled-Tuesday-Blitz-January-30-2024"]
[Site "Chess.com"]
[Date "2024.01.30"]
[Round "11"]
[White "ARTHURMOTIVATOR"]
[Black "GMRafpig"]
[Result "0-1"]
[WhiteElo "2353"]
[BlackElo "2726"]
[TimeControl "180+1"]
[EndTime "16:05:51 PST"]
[Termination "GMRafpig won on time"]

1. e4 {[%clk 0:02:54.4]} 1... c5 {[%clk 0:02:58.9]} 2. Nf3 {[%clk 0:02:51.9]}
2... Nc6 {[%clk 0:02:59.1]} 3. Bb5 {[%clk 0:02:50.1]} 3... d6 {[%clk 0:02:58.9]}
4. O-O {[%clk 0:02:43.3]} 4... Bd7 {[%clk 0:02:59.4]} 5. c3 {[%clk 0:02:41.7]}
5... Nf6 {[%clk 0:02:58.8]} 6. Re1 {[%clk 0:02:39.3]} 6... a6 {[%clk 0:02:59.2]}
7. Bf1 {[%clk 0:02:36.8]} 7... Bg4 {[%clk 0:02:57.6]} 8. h3 {[%clk 0:02:35.5]}
8... Bxf3 {[%clk 0:02:57.6]} 9. Qxf3 {[%clk 0:02:34.6]} 9... g6 {[%clk
0:02:58.3]} 10. Qd1 {[%clk 0:02:30.3]} 10... Bg7 {[%clk 0:02:46.7]} 11. d4
{[%clk 0:02:29.5]} 11... cxd4 {[%clk 0:02:09.5]} 12. cxd4 {[%clk 0:02:30.4]}
12... O-O {[%clk 0:02:07.2]} 13. Nc3 {[%clk 0:02:27.5]} 13... e5 {[%clk
0:02:07.3]} 14. d5 {[%clk 0:02:19.1]} 14... Nd4 {[%clk 0:02:06.9]} 15. Be3
{[%clk 0:02:11.6]} 15... Nd7 {[%clk 0:02:06.6]} 16. Qd2 {[%clk 0:02:05]} 16...
Rc8 {[%clk 0:01:46]} 17. Rad1 {[%clk 0:02:02.8]} 17... f5 {[%clk 0:01:33.3]} 18.
f4 {[%clk 0:01:53.8]} 18... Kh8 {[%clk 0:01:28]} 19. exf5 {[%clk 0:01:26.7]}
19... Nxf5 {[%clk 0:01:26.4]} 20. Bf2 {[%clk 0:01:21.1]} 20... Bh6 {[%clk
0:01:23.1]} 21. Ne4 {[%clk 0:01:07.5]} 21... exf4 {[%clk 0:01:18.8]} 22. Qb4
{[%clk 0:01:02]} 22... f3 {[%clk 0:01:01.9]} 23. Nxd6 {[%clk 0:00:54.7]} 23...
fxg2 {[%clk 0:00:47.5]} 24. Bxg2 {[%clk 0:00:50.2]} 24... a5 {[%clk 0:00:46.7]}
25. Qa3 {[%clk 0:00:44]} 25... Rc2 {[%clk 0:00:46.6]} 26. Nxf5 {[%clk
0:00:14.9]} 26... Rxf5 {[%clk 0:00:46.3]} 27. Bd4+ {[%clk 0:00:15.1]} 27... Kg8
{[%clk 0:00:42]} 28. d6 {[%clk 0:00:12.2]} 28... Rxg2+ {[%clk 0:00:20.1]} 29.
Kxg2 {[%clk 0:00:10.9]} 29... Bf4 {[%clk 0:00:20.6]} 30. Qb3+ {[%clk 0:00:10.6]}
30... Kf8 {[%clk 0:00:20.4]} 31. Re7 {[%clk 0:00:09.6]} 31... Bxd6 {[%clk
0:00:19.9]} 32. Bg7+ {[%clk 0:00:05.3]} 32... Kxe7 {[%clk 0:00:19.9]} 33. Re1+
{[%clk 0:00:05.2]} 33... Ne5 {[%clk 0:00:19.2]} 34. Bxe5 {[%clk 0:00:04.2]}
34... Rxe5 {[%clk 0:00:18.6]} 35. Qxb7+ {[%clk 0:00:05.1]} 35... Kf6 {[%clk
0:00:18.4]} 36. Rf1+ {[%clk 0:00:04.6]} 36... Rf5 {[%clk 0:00:15.3]} 37. Rxf5+
{[%clk 0:00:02.4]} 37... gxf5 {[%clk 0:00:15.2]} 38. Qd5 {[%clk 0:00:02.2]}
38... Qe7 {[%clk 0:00:13.4]} 39. Qd4+ {[%clk 0:00:01.6]} 39... Qe5 {[%clk
0:00:13.3]} 0-1

[Event "Late-Titled-Tuesday-Blitz-January-30-2024"]
[Site "Chess.com"]
[Date "2024.01.30"]
[Round "11"]
[White "Slovineanu"]
[Black "alexrustemov"]
[Result "0-1"]
[WhiteElo "2443"]
[BlackElo "2723"]
[TimeControl "180+1"]
[EndTime "16:06:05 PST"]
[Termination "alexrustemov won by resignation"]

1. d4 {[%clk 0:02:59.7]} 1... g6 {[%clk 0:02:59.1]} 2. e4 {[%clk 0:02:59.3]}
2... Bg7 {[%clk 0:02:59.4]} 3. Nc3 {[%clk 0:02:59.9]} 3... d6 {[%clk 0:02:59.1]}
4. Be3 {[%clk 0:02:59.3]} 4... a6 {[%clk 0:02:59.1]} 5. Nf3 {[%clk 0:02:59.2]}
5... b5 {[%clk 0:02:58.7]} 6. h4 {[%clk 0:02:56.3]} 6... h6 {[%clk 0:02:53.7]}
7. Bd3 {[%clk 0:02:50.1]} 7... Bb7 {[%clk 0:02:53.2]} 8. e5 {[%clk 0:02:50.1]}
8... e6 {[%clk 0:02:46.9]} 9. a4 {[%clk 0:02:42.8]} 9... b4 {[%clk 0:02:40.7]}
10. Ne4 {[%clk 0:02:43.2]} 10... Ne7 {[%clk 0:02:38.5]} 11. Qd2 {[%clk
0:02:31.6]} 11... Nd5 {[%clk 0:02:33.7]} 12. c4 {[%clk 0:02:22]} 12... Nxe3
{[%clk 0:02:21.1]} 13. Qxe3 {[%clk 0:02:22.3]} 13... dxe5 {[%clk 0:02:17.9]} 14.
dxe5 {[%clk 0:02:17.7]} 14... Nd7 {[%clk 0:02:15.4]} 15. Rd1 {[%clk 0:01:49.6]}
15... Qe7 {[%clk 0:02:13.8]} 16. Ng3 {[%clk 0:01:42.1]} 16... Bxf3 {[%clk
0:02:05]} 17. Qxf3 {[%clk 0:01:38.3]} 17... O-O {[%clk 0:02:02.9]} 18. h5 {[%clk
0:01:30.6]} 18... Nxe5 {[%clk 0:01:59]} 19. Qe4 {[%clk 0:01:21.9]} 19... f5
{[%clk 0:01:56.2]} 20. Qe2 {[%clk 0:01:16.4]} 20... g5 {[%clk 0:01:55.8]} 21.
O-O {[%clk 0:01:07.3]} 21... Rad8 {[%clk 0:01:52.7]} 22. Bc2 {[%clk 0:01:04.4]}
22... Qc5 {[%clk 0:01:48.5]} 23. b3 {[%clk 0:00:56.5]} 23... g4 {[%clk
0:01:36.2]} 24. Rxd8 {[%clk 0:00:52.8]} 24... Rxd8 {[%clk 0:01:35.4]} 25. Rd1
{[%clk 0:00:53.4]} 25... Rxd1+ {[%clk 0:01:34.6]} 26. Qxd1 {[%clk 0:00:53.7]}
26... Qd6 {[%clk 0:01:34]} 27. Qe2 {[%clk 0:00:49.1]} 27... a5 {[%clk
0:01:27.8]} 28. Qe3 {[%clk 0:00:47.7]} 28... c5 {[%clk 0:01:26.7]} 29. Ne2
{[%clk 0:00:46.4]} 29... Nc6 {[%clk 0:01:24]} 30. Nf4 {[%clk 0:00:43.6]} 30...
Nd4 {[%clk 0:01:22.6]} 31. Bd1 {[%clk 0:00:40.3]} 31... Qe5 {[%clk 0:01:22.1]}
32. Ng6 {[%clk 0:00:31.3]} 32... Qxe3 {[%clk 0:01:19.4]} 33. fxe3 {[%clk
0:00:31.5]} 33... Nc6 {[%clk 0:01:18.6]} 34. Kf2 {[%clk 0:00:29]} 34... Kf7
{[%clk 0:01:18]} 35. e4 {[%clk 0:00:24]} 35... Nd4 {[%clk 0:01:12.3]} 36. Ke3
{[%clk 0:00:20.4]} 36... Bf6 {[%clk 0:01:06.7]} 37. e5 {[%clk 0:00:16.9]} 37...
Bg5+ {[%clk 0:01:06.3]} 38. Kf2 {[%clk 0:00:17.5]} 38... Nc6 {[%clk 0:00:55.3]}
39. g3 {[%clk 0:00:16.6]} 39... Bc1 {[%clk 0:00:53.8]} 40. Be2 {[%clk
0:00:15.7]} 40... Bb2 {[%clk 0:00:53.1]} 41. Bd1 {[%clk 0:00:16.1]} 41... Nxe5
{[%clk 0:00:50.1]} 42. Nf4 {[%clk 0:00:15.1]} 42... Bd4+ {[%clk 0:00:46.8]} 43.
Kg2 {[%clk 0:00:14.2]} 43... Kf6 {[%clk 0:00:47.1]} 44. Bc2 {[%clk 0:00:14]}
44... Be3 {[%clk 0:00:45.2]} 45. Nd3 {[%clk 0:00:12.5]} 45... Nxd3 {[%clk
0:00:43.7]} 46. Bxd3 {[%clk 0:00:12.9]} 46... Kg5 {[%clk 0:00:44.3]} 47. Kf1
{[%clk 0:00:11.6]} 47... Kxh5 {[%clk 0:00:44.1]} 48. Ke1 {[%clk 0:00:11.2]}
48... Kg5 {[%clk 0:00:43]} 49. Bf1 {[%clk 0:00:11.4]} 49... h5 {[%clk
0:00:40.1]} 50. Bg2 {[%clk 0:00:11.4]} 50... h4 {[%clk 0:00:38.8]} 51. gxh4+
{[%clk 0:00:11.2]} 51... Kxh4 {[%clk 0:00:39.4]} 52. Bc6 {[%clk 0:00:11.7]}
52... Kg5 {[%clk 0:00:38.9]} 53. Bd7 {[%clk 0:00:11.8]} 53... e5 {[%clk
0:00:37.8]} 54. Ke2 {[%clk 0:00:11.6]} 54... Bd4 {[%clk 0:00:37.9]} 55. Bc8
{[%clk 0:00:11.4]} 55... e4 {[%clk 0:00:37.3]} 56. Bd7 {[%clk 0:00:11.3]} 56...
g3 {[%clk 0:00:32.6]} 57. Kf1 {[%clk 0:00:09.9]} 57... f4 {[%clk 0:00:31.9]} 58.
Bc6 {[%clk 0:00:08.9]} 58... f3 {[%clk 0:00:31.6]} 0-1

[Event "Late-Titled-Tuesday-Blitz-January-30-2024"]
[Site "Chess.com"]
[Date "2024.01.30"]
[Round "11"]
[White "h4parah5"]
[Black "crescentmoon2411"]
[Result "1-0"]
[WhiteElo "2931"]
[BlackElo "3002"]
[TimeControl "180+1"]
[EndTime "16:06:06 PST"]
[Termination "h4parah5 won by resignation"]

1. Nf3 {[%clk 0:03:00.9]} 1... Nf6 {[%clk 0:02:55.8]} 2. c4 {[%clk 0:03:00.3]}
2... e6 {[%clk 0:02:55.2]} 3. b3 {[%clk 0:02:59.8]} 3... d5 {[%clk 0:02:54.4]}
4. Bb2 {[%clk 0:03:00.4]} 4... c5 {[%clk 0:02:53.8]} 5. cxd5 {[%clk 0:02:59]}
5... exd5 {[%clk 0:02:53]} 6. g3 {[%clk 0:02:59.5]} 6... Nc6 {[%clk 0:02:53.1]}
7. Bg2 {[%clk 0:02:59.7]} 7... d4 {[%clk 0:02:45.8]} 8. O-O {[%clk 0:02:59.9]}
8... Be7 {[%clk 0:02:45.1]} 9. e3 {[%clk 0:02:59.5]} 9... dxe3 {[%clk 0:02:45]}
10. dxe3 {[%clk 0:02:58.4]} 10... O-O {[%clk 0:02:43.2]} 11. Nc3 {[%clk
0:02:57.4]} 11... Bf5 {[%clk 0:02:34.8]} 12. Re1 {[%clk 0:02:50.5]} 12... Qxd1
{[%clk 0:02:32.7]} 13. Raxd1 {[%clk 0:02:49.6]} 13... Rad8 {[%clk 0:02:33.1]}
14. Nh4 {[%clk 0:02:37.6]} 14... Bg4 {[%clk 0:02:27.4]} 15. f3 {[%clk 0:02:31]}
15... Be6 {[%clk 0:02:26.1]} 16. f4 {[%clk 0:02:29.9]} 16... Nb4 {[%clk
0:02:18.5]} 17. Bxb7 {[%clk 0:02:16.2]} 17... Nd3 {[%clk 0:02:08.9]} 18. Re2
{[%clk 0:02:16]} 18... c4 {[%clk 0:01:57.7]} 19. f5 {[%clk 0:02:04.9]} 19... Bd7
{[%clk 0:01:41.1]} 20. bxc4 {[%clk 0:01:59.8]} 20... Nxb2 {[%clk 0:01:35.3]} 21.
Rxb2 {[%clk 0:02:00.7]} 21... Bc5 {[%clk 0:01:35.7]} 22. Re2 {[%clk 0:01:53.8]}
22... Rb8 {[%clk 0:01:22.9]} 23. Ne4 {[%clk 0:01:40.4]} 23... Nxe4 {[%clk
0:01:17.7]} 24. Bxe4 {[%clk 0:01:34.1]} 24... Ba4 {[%clk 0:01:12.8]} 25. Rd5
{[%clk 0:01:25.7]} 25... Rbc8 {[%clk 0:01:11.9]} 26. Kf2 {[%clk 0:01:21.6]}
26... Rfe8 {[%clk 0:01:10.9]} 27. Bd3 {[%clk 0:01:19.3]} 27... Bb6 {[%clk
0:01:05.2]} 28. Nf3 {[%clk 0:01:02.1]} 28... Bc6 {[%clk 0:00:59.5]} 29. Re5
{[%clk 0:01:01.4]} 29... Red8 {[%clk 0:00:50.8]} 30. Be4 {[%clk 0:00:58.5]}
30... Ba4 {[%clk 0:00:35.4]} 31. Bd5 {[%clk 0:00:58]} 31... Rc7 {[%clk
0:00:30.9]} 32. g4 {[%clk 0:00:52.5]} 32... Kf8 {[%clk 0:00:28.8]} 33. h4 {[%clk
0:00:48.8]} 33... h6 {[%clk 0:00:17.1]} 34. g5 {[%clk 0:00:45.5]} 34... hxg5
{[%clk 0:00:16.6]} 35. hxg5 {[%clk 0:00:35.9]} 35... Re7 {[%clk 0:00:15.5]} 36.
Rxe7 {[%clk 0:00:33.7]} 36... Kxe7 {[%clk 0:00:16.4]} 37. Kg2 {[%clk 0:00:31.5]}
37... f6 {[%clk 0:00:16.2]} 38. g6 {[%clk 0:00:29]} 38... Bd1 {[%clk 0:00:15.3]}
39. Re1 {[%clk 0:00:27.6]} 39... Bxf3+ {[%clk 0:00:15.5]} 40. Kxf3 {[%clk
0:00:27.4]} 40... Rh8 {[%clk 0:00:16]} 41. Kg2 {[%clk 0:00:23.6]} 41... Kd6
{[%clk 0:00:16.3]} 42. e4 {[%clk 0:00:23.3]} 42... Ke5 {[%clk 0:00:15.4]} 43.
Rb1 {[%clk 0:00:21.9]} 43... Kd6 {[%clk 0:00:15.3]} 44. Rb5 {[%clk 0:00:21.2]}
44... Rh5 {[%clk 0:00:15.2]} 45. a4 {[%clk 0:00:20.6]} 45... Rg5+ {[%clk
0:00:15]} 46. Kf3 {[%clk 0:00:20.4]} 46... Rh5 {[%clk 0:00:15]} 47. a5 {[%clk
0:00:20.3]} 47... Bd4 {[%clk 0:00:14.9]} 48. Rb7 {[%clk 0:00:19.9]} 48... Rh3+
{[%clk 0:00:14.8]} 49. Kg2 {[%clk 0:00:19.4]} 49... Ra3 {[%clk 0:00:14]} 50.
Rxg7 {[%clk 0:00:19.4]} 50... Ke5 {[%clk 0:00:14.6]} 51. Re7+ {[%clk 0:00:18.1]}
51... Kf4 {[%clk 0:00:15.2]} 52. g7 {[%clk 0:00:18.6]} 52... Rg3+ {[%clk
0:00:15.1]} 53. Kh2 {[%clk 0:00:18.6]} 53... Bg1+ {[%clk 0:00:12.7]} 54. Kh1
{[%clk 0:00:18.5]} 1-0

[Event "Late-Titled-Tuesday-Blitz-January-30-2024"]
[Site "Chess.com"]
[Date "2024.01.30"]
[Round "11"]
[White "ArturoCaceres"]
[Black "traviscottofficial"]
[Result "1-0"]
[WhiteElo "2512"]
[BlackElo "2599"]
[TimeControl "180+1"]
[EndTime "16:06:07 PST"]
[Termination "ArturoCaceres won by resignation"]

1. Nf3 {[%clk 0:03:00.9]} 1... Nf6 {[%clk 0:02:58.8]} 2. d4 {[%clk 0:03:00]}
2... g6 {[%clk 0:02:59.1]} 3. Bg5 {[%clk 0:02:49.7]} 3... Bg7 {[%clk 0:02:59.3]}
4. Qc1 {[%clk 0:02:50.1]} 4... h6 {[%clk 0:02:58.6]} 5. Bh4 {[%clk 0:02:49]}
5... d6 {[%clk 0:02:58.9]} 6. Nbd2 {[%clk 0:02:48.6]} 6... O-O {[%clk
0:02:56.1]} 7. e4 {[%clk 0:02:48.8]} 7... Nc6 {[%clk 0:02:55.7]} 8. c3 {[%clk
0:02:48.7]} 8... e5 {[%clk 0:02:54.9]} 9. Bb5 {[%clk 0:02:46.8]} 9... exd4
{[%clk 0:02:54.3]} 10. cxd4 {[%clk 0:02:47.3]} 10... Bd7 {[%clk 0:02:48]} 11.
O-O {[%clk 0:02:45.9]} 11... g5 {[%clk 0:02:45.2]} 12. Bg3 {[%clk 0:02:44.4]}
12... Nh5 {[%clk 0:02:45.8]} 13. d5 {[%clk 0:02:36.8]} 13... Ne7 {[%clk
0:02:35.4]} 14. Bxd7 {[%clk 0:02:35.8]} 14... Qxd7 {[%clk 0:02:36.3]} 15. Qc2
{[%clk 0:02:35]} 15... f5 {[%clk 0:02:34.4]} 16. exf5 {[%clk 0:02:27.7]} 16...
Nxf5 {[%clk 0:02:33.6]} 17. Rac1 {[%clk 0:02:13.2]} 17... Rf7 {[%clk 0:02:33.1]}
18. Rfe1 {[%clk 0:02:06.8]} 18... Raf8 {[%clk 0:02:31.1]} 19. Qb3 {[%clk
0:02:02]} 19... Nhxg3 {[%clk 0:02:24.7]} 20. fxg3 {[%clk 0:01:50.7]} 20... g4
{[%clk 0:02:21.9]} 21. Nh4 {[%clk 0:01:49.5]} 21... Nxh4 {[%clk 0:02:21.3]} 22.
gxh4 {[%clk 0:01:50.4]} 22... Qf5 {[%clk 0:02:15.2]} 23. Qc2 {[%clk 0:00:45.8]}
23... Qf2+ {[%clk 0:02:11]} 24. Kh1 {[%clk 0:00:45.5]} 24... Qxe1+ {[%clk
0:02:08.5]} 25. Rxe1 {[%clk 0:00:44.4]} 25... Rf2 {[%clk 0:02:03.7]} 26. Qd3
{[%clk 0:00:39.5]} 26... Be5 {[%clk 0:01:48.8]} 27. Rf1 {[%clk 0:00:36.9]} 27...
Kg7 {[%clk 0:01:40.4]} 28. Kg1 {[%clk 0:00:35]} 28... Rxf1+ {[%clk 0:01:14.6]}
29. Nxf1 {[%clk 0:00:35.9]} 29... Bxb2 {[%clk 0:01:14.7]} 30. Ne3 {[%clk
0:00:32.4]} 30... h5 {[%clk 0:01:12]} 31. Qe4 {[%clk 0:00:23.3]} 31... Be5
{[%clk 0:01:09.6]} 32. Nf5+ {[%clk 0:00:23.2]} 32... Kh8 {[%clk 0:01:00.4]} 33.
g3 {[%clk 0:00:20.4]} 33... Rf6 {[%clk 0:01:00.7]} 34. Kg2 {[%clk 0:00:20.6]}
34... Kg8 {[%clk 0:00:59.8]} 35. Nd4 {[%clk 0:00:20.2]} 35... Bxd4 {[%clk
0:00:45.4]} 36. Qxd4 {[%clk 0:00:19.7]} 36... Rf5 {[%clk 0:00:46]} 37. Qc4
{[%clk 0:00:18.3]} 37... Rf7 {[%clk 0:00:44.5]} 38. Qb5 {[%clk 0:00:17.9]} 38...
b6 {[%clk 0:00:43.8]} 39. Qa6 {[%clk 0:00:17.7]} 39... Re7 {[%clk 0:00:42.2]}
40. Qxa7 {[%clk 0:00:17.1]} 40... Kf7 {[%clk 0:00:42.2]} 41. Qa6 {[%clk
0:00:15.4]} 41... Kg7 {[%clk 0:00:39.7]} 42. Qf1 {[%clk 0:00:15]} 42... Re5
{[%clk 0:00:38]} 43. Qd3 {[%clk 0:00:14.7]} 43... Re7 {[%clk 0:00:37.9]} 44. a4
{[%clk 0:00:14.9]} 44... Rf7 {[%clk 0:00:37.4]} 45. h3 {[%clk 0:00:14.1]} 45...
Rf3 {[%clk 0:00:35.2]} 46. Qd4+ {[%clk 0:00:14.2]} 46... Kg6 {[%clk 0:00:32.7]}
47. hxg4 {[%clk 0:00:15.1]} 47... Rf7 {[%clk 0:00:32.2]} 48. gxh5+ {[%clk
0:00:15.3]} 48... Kxh5 {[%clk 0:00:33.1]} 49. Kh3 {[%clk 0:00:15.4]} 49... Kg6
{[%clk 0:00:32]} 50. Qg4+ {[%clk 0:00:15.2]} 50... Kh6 {[%clk 0:00:32.1]} 51.
Qg5+ {[%clk 0:00:15.3]} 51... Kh7 {[%clk 0:00:31.3]} 52. h5 {[%clk 0:00:15.9]}
52... Rg7 {[%clk 0:00:30.9]} 53. Qf6 {[%clk 0:00:16.1]} 53... Rg8 {[%clk
0:00:28.8]} 54. g4 {[%clk 0:00:16.4]} 54... Rg7 {[%clk 0:00:26.3]} 55. g5 {[%clk
0:00:16.5]} 55... Kg8 {[%clk 0:00:26.2]} 56. g6 {[%clk 0:00:14.3]} 1-0